OrganisationURI,OrganisationLabel,OrganisationalUnit,TransactionNumber,Invoice Ref.,BeneficiaryName,Expense Type,Purpose,PaymentDate,Amount
http://statistics.data.gov.uk/id/local-authority-district/23UB,Cheltenham Borough Council,Fire Protection,14039201,177138,A & E Fire Equipment Limited,C1107-CAH015,Building Works,04/09/2015,9079.60
http://statistics.data.gov.uk/id/local-authority-district/23UB,Cheltenham Borough Council,Cemetery & Crematorium Repairs & Maintenance,14039327,177488,A & E Fire Equipment Limited,R2008-CCM111,R & M of Build - Reactive Repairs,11/09/2015,623.48
http://statistics.data.gov.uk/id/local-authority-district/23UB,Cheltenham Borough Council,Art Gallery & Museum Repairs & Maintenance,14039861,SOI0087421,AllCoopers Limited,R2705-CUL117,Security Systems,25/09/2015,1285.00
http://statistics.data.gov.uk/id/local-authority-district/23UB,Cheltenham Borough Council,Door Entry,14039772,30020,Allhands Limited T/A Harrold Jones Services,C1107-CAH010,Building Works,25/09/2015,4739.00
http://statistics.data.gov.uk/id/local-authority-district/23UB,Cheltenham Borough Council,Accountancy,14039511,63566,Alpha Colour Printers Limited,R4300-SUP009,Printing - Services,11/09/2015,569.00
http://statistics.data.gov.uk/id/local-authority-district/23UB,Cheltenham Borough Council,Individual Electoral Registration,14039505,28358,Alpha Response Print & Mail Limited,R4300-ELE010,Printing - Services,11/09/2015,2042.00
http://statistics.data.gov.uk/id/local-authority-district/23UB,Cheltenham Borough Council,ICT,14039177,255980,Altula Limited,R4534-SUP005,IT - Maint Agreements,18/09/2015,9768.96
http://statistics.data.gov.uk/id/local-authority-district/23UB,Cheltenham Borough Council,Joint Core Strategy,14039205,50017413,Amec Foster Wheeler Environment & Infrastructure Limited,R4400-PLP101,Services - Professional Fees,04/09/2015,1383.00
http://statistics.data.gov.uk/id/local-authority-district/23UB,Cheltenham Borough Council,Flood Risk Management,14039257,877,Anderson Civil Engineering UK Limited,R5001-FRM101,TPP - Major External Contractors,01/09/2015,510.00
http://statistics.data.gov.uk/id/local-authority-district/23UB,Cheltenham Borough Council,Flood Risk Management,14039257,877,Anderson Civil Engineering UK Limited,R5001-FRM101,TPP - Major External Contractors,01/09/2015,1028.63
http://statistics.data.gov.uk/id/local-authority-district/23UB,Cheltenham Borough Council,Flood Risk Management,14039255,878,Anderson Civil Engineering UK Limited,R5001-FRM101,TPP - Major External Contractors,01/09/2015,510.00
http://statistics.data.gov.uk/id/local-authority-district/23UB,Cheltenham Borough Council,Flood Risk Management,14039255,878,Anderson Civil Engineering UK Limited,R5001-FRM101,TPP - Major External Contractors,01/09/2015,1149.26
http://statistics.data.gov.uk/id/local-authority-district/23UB,Cheltenham Borough Council,Phase 3 Development,14039216,136/7502-1&8598,Anthony Brookes Surveys Limited,C1107-CAH039,Building Works,04/09/2015,940.00
http://statistics.data.gov.uk/id/local-authority-district/23UB,Cheltenham Borough Council,Cheltenham Municipal Offices,14039158,83268,Applied Satellite Technology Systems Limited,R2500-ADB101,Fixtures and Fittings - Purchases,25/09/2015,2041.00
http://statistics.data.gov.uk/id/local-authority-district/23UB,Cheltenham Borough Council,Car Parks - Off Street Operations,14038320,120987,APT Controls Limited,R4000-CPK001,Equipment Purchase,01/09/2015,6474.91
http://statistics.data.gov.uk/id/local-authority-district/23UB,Cheltenham Borough Council,Development Control - Applications,14039244,11774,Artful Limited,R4317-DEV001,Non Staff Advertising,04/09/2015,2385.76
http://statistics.data.gov.uk/id/local-authority-district/23UB,Cheltenham Borough Council,External Improvements,14039766,4230,ASRS Yeovil Limited,C1107-CAH003,Building Works,25/09/2015,1482.00
http://statistics.data.gov.uk/id/local-authority-district/23UB,Cheltenham Borough Council,External Improvements,14039754,4231,ASRS Yeovil Limited,C1107-CAH003,Building Works,25/09/2015,1482.00
http://statistics.data.gov.uk/id/local-authority-district/23UB,Cheltenham Borough Council,Elections Support/Overheads,14039197,16929,Association of Electoral Administrators,R1652-ELE003,Training Fees (External),01/09/2015,1495.00
http://statistics.data.gov.uk/id/local-authority-district/23UB,Cheltenham Borough Council,Building Control - Fee Earning Work,14039198,BRG124,B R G Interim Solutions Limited,R1100-BUC001,Agency Staff,01/09/2015,1877.35
http://statistics.data.gov.uk/id/local-authority-district/23UB,Cheltenham Borough Council,Building Control - Fee Earning Work,14039199,BRG141,B R G Interim Solutions Limited,R1100-BUC001,Agency Staff,01/09/2015,1891.60
http://statistics.data.gov.uk/id/local-authority-district/23UB,Cheltenham Borough Council,Building Control - Fee Earning Work,14039735,BRG187,B R G Interim Solutions Limited,R1100-BUC001,Agency Staff,25/09/2015,1880.00
http://statistics.data.gov.uk/id/local-authority-district/23UB,Cheltenham Borough Council,Building Control - Fee Earning Work,14039736,BRG205,B R G Interim Solutions Limited,R1100-BUC001,Agency Staff,25/09/2015,1527.50
http://statistics.data.gov.uk/id/local-authority-district/23UB,Cheltenham Borough Council,Building Control - Fee Earning Work,14039734,BRG206,B R G Interim Solutions Limited,R1100-BUC001,Agency Staff,25/09/2015,1821.25
http://statistics.data.gov.uk/id/local-authority-district/23UB,Cheltenham Borough Council,Building Control - Fee Earning Work,14039279,BRG68,B R G Interim Solutions Limited,R1100-BUC001,Agency Staff,04/09/2015,1527.50
http://statistics.data.gov.uk/id/local-authority-district/23UB,Cheltenham Borough Council,Building Control - Fee Earning Work,14039280,BRG83,B R G Interim Solutions Limited,R1100-BUC001,Agency Staff,04/09/2015,1692.00
http://statistics.data.gov.uk/id/local-authority-district/23UB,Cheltenham Borough Council,Cheltenham Business Partnership,14039713,153108-026,Blackadder Media Limited,R4411-HLD130,Consultancy Fees,25/09/2015,4290.00
http://statistics.data.gov.uk/id/local-authority-district/23UB,Cheltenham Borough Council,Art Gallery & Museum Development,14037620,224523,Blink Image Limited,C1105-CAP121,Design Services,04/09/2015,2250.00
http://statistics.data.gov.uk/id/local-authority-district/23UB,Cheltenham Borough Council,Treasury Management,14038771,MINV186884,Bottomline Technologies Europe Limited (Security Print),R4534-COR006,IT - Maint Agreements,01/09/2015,2126.34
http://statistics.data.gov.uk/id/local-authority-district/23UB,Cheltenham Borough Council,Council Tax Collection,14039443,155400,Bristow & Sutor,R4406-LTC001,Bailiffs Fees,04/09/2015,-1108.11
http://statistics.data.gov.uk/id/local-authority-district/23UB,Cheltenham Borough Council,Council Tax Collection,14039443,155400,Bristow & Sutor,R4406-LTC001,Bailiffs Fees,04/09/2015,1108.11
http://statistics.data.gov.uk/id/local-authority-district/23UB,Cheltenham Borough Council,Council Tax Collection,14039442,155681,Bristow & Sutor,R4406-LTC001,Bailiffs Fees,04/09/2015,1928.41
http://statistics.data.gov.uk/id/local-authority-district/23UB,Cheltenham Borough Council,Council Tax Collection,14039442,155681,Bristow & Sutor,R4406-LTC001,Bailiffs Fees,04/09/2015,-1928.41
http://statistics.data.gov.uk/id/local-authority-district/23UB,Cheltenham Borough Council,Council Tax Collection,14039562,156235,Bristow & Sutor,R4406-LTC001,Bailiffs Fees,18/09/2015,1450.70
http://statistics.data.gov.uk/id/local-authority-district/23UB,Cheltenham Borough Council,Council Tax Collection,14039562,156235,Bristow & Sutor,R4406-LTC001,Bailiffs Fees,18/09/2015,-1450.70
http://statistics.data.gov.uk/id/local-authority-district/23UB,Cheltenham Borough Council,Council Tax Collection,14039567,156456,Bristow & Sutor,R4406-LTC001,Bailiffs Fees,18/09/2015,2695.18
http://statistics.data.gov.uk/id/local-authority-district/23UB,Cheltenham Borough Council,Council Tax Collection,14039567,156456,Bristow & Sutor,R4406-LTC001,Bailiffs Fees,18/09/2015,-2695.18
http://statistics.data.gov.uk/id/local-authority-district/23UB,Cheltenham Borough Council,Animal Control,14039542,800042544,Bromsgrove District Council,R4401-REG003,Services - Fees and Charges,18/09/2015,4520.23
http://statistics.data.gov.uk/id/local-authority-district/23UB,Cheltenham Borough Council,Environmental Health General,14039521,112766,Buckingham Futures Limited,R1100-REG001,Agency Staff,11/09/2015,1256.40
http://statistics.data.gov.uk/id/local-authority-district/23UB,Cheltenham Borough Council,Environmental Health General,14039629,BF2910,Buckingham Futures Limited,R1100-REG001,Agency Staff,18/09/2015,4675.00
http://statistics.data.gov.uk/id/local-authority-district/23UB,Cheltenham Borough Council,Cheltenham Municipal Offices,14039218,08/232315,Bunzl Cleaning and Hygiene Supplies,R4009-ADB101,Materials - Cleaning Materials,04/09/2015,590.40
http://statistics.data.gov.uk/id/local-authority-district/23UB,Cheltenham Borough Council,External Improvements,14039222,6610,C &  R Decorating and Maintenance Limited,C1107-CAH003,Building Works,04/09/2015,6734.00
http://statistics.data.gov.uk/id/local-authority-district/23UB,Cheltenham Borough Council,Repairs and Maintenance,14039768,6626,C &  R Decorating and Maintenance Limited,R2021-HRA100,R & M of Build Disabled Adaptations,25/09/2015,623.50
http://statistics.data.gov.uk/id/local-authority-district/23UB,Cheltenham Borough Council,"Cemetery, Crematorium and Churchyards",14039195,4293,C Mawdsley t/a Arbor Tree Care,R2070-CCM001,Tree Work,01/09/2015,2350.00
http://statistics.data.gov.uk/id/local-authority-district/23UB,Cheltenham Borough Council,Sports & Open Spaces Operations,14039209,586,C P W Daniell Limited,R2071-OPS002,Open Spaces and Grassed Areas,01/09/2015,687.50
http://statistics.data.gov.uk/id/local-authority-district/23UB,Cheltenham Borough Council,Hatherley Art Project,14039710,658,Cantoo Limited,C4000-CAP156,Acquisition of Equipment,25/09/2015,770.00
http://statistics.data.gov.uk/id/local-authority-district/23UB,Cheltenham Borough Council,Hatherley Art Project,14039709,659,Cantoo Limited,C4000-CAP156,Acquisition of Equipment,25/09/2015,1200.00
http://statistics.data.gov.uk/id/local-authority-district/23UB,Cheltenham Borough Council,Flood Risk Management,14039245,6495,CC Ground Investigations Limited,R5001-FRM101,TPP - Major External Contractors,04/09/2015,3673.90
http://statistics.data.gov.uk/id/local-authority-district/23UB,Cheltenham Borough Council,Community Welfare Grants,14039670,ONE OFF GRANT,Cheltenham Civic Society,R6280-GBD001,Grants,18/09/2015,2000.00
http://statistics.data.gov.uk/id/local-authority-district/23UB,Cheltenham Borough Council,Community Welfare Grants,14039667,COM PRIDE 110915,Cheltenham Poetry Festival C.I.C.,R6280-GBD001,Grants,18/09/2015,1000.00
http://statistics.data.gov.uk/id/local-authority-district/23UB,Cheltenham Borough Council,Council Tax Collection,14039242,C/BC136713,Civica UK Limited (Burston Road),R4401-LTC001,Services - Fees and Charges,11/09/2015,1870.00
http://statistics.data.gov.uk/id/local-authority-district/23UB,Cheltenham Borough Council,Council Tax Collection,14039243,C/BC136714,Civica UK Limited (Burston Road),R4401-LTC001,Services - Fees and Charges,11/09/2015,2882.00
http://statistics.data.gov.uk/id/local-authority-district/23UB,Cheltenham Borough Council,Cheltenham Municipal Offices,14039275,550228,Comensura Limited,R1100-ADB101,Agency Staff,11/09/2015,880.98
http://statistics.data.gov.uk/id/local-authority-district/23UB,Cheltenham Borough Council,"Cemetery, Crematorium and Churchyards",14039275,550228,Comensura Limited,R1100-CCM001,Agency Staff,11/09/2015,7752.33
http://statistics.data.gov.uk/id/local-authority-district/23UB,Cheltenham Borough Council,"Cemetery, Crematorium and Churchyards",14039547,550535,Comensura Limited,R1100-CCM001,Agency Staff,11/09/2015,1795.28
http://statistics.data.gov.uk/id/local-authority-district/23UB,Cheltenham Borough Council,Treasury Management,14039516,106052,Corpstar Investments Limited T/A Logotech Systems,R4400-COR006,Services - Professional Fees,11/09/2015,1200.00
http://statistics.data.gov.uk/id/local-authority-district/23UB,Cheltenham Borough Council,Flood Risk Management,14039281,C25693,Cotswold Drain Service Limited,R5001-FRM101,TPP - Major External Contractors,04/09/2015,1140.00
http://statistics.data.gov.uk/id/local-authority-district/23UB,Cheltenham Borough Council,Sports & Open Spaces Repairs & Maintenance,14039125,C25955,Cotswold Drain Service Limited,R2004-OPS122,R & M of Build Programmed,01/09/2015,930.00
http://statistics.data.gov.uk/id/local-authority-district/23UB,Cheltenham Borough Council,Tourist/Visitor Information Centre,14039742,INV-0185,Creative Tourist Limited,R4400-TOU002,Services - Professional Fees,25/09/2015,5625.00
http://statistics.data.gov.uk/id/local-authority-district/23UB,Cheltenham Borough Council,Land & Property presale costs,14039381,CA1061-7,Curtins Consulting Limited,C1005-CAP401,Surveyors Fees,11/09/2015,567.00
http://statistics.data.gov.uk/id/local-authority-district/23UB,Cheltenham Borough Council,Parks & Gardens Operations,14039651,01433A,D A Jones Landscapes,R2075-OPS001,Grounds Maintenance - Contract,18/09/2015,1600.00
http://statistics.data.gov.uk/id/local-authority-district/23UB,Cheltenham Borough Council,Parks & Gardens Operations,14039652,01434A,D A Jones Landscapes,R2075-OPS001,Grounds Maintenance - Contract,18/09/2015,1600.00
http://statistics.data.gov.uk/id/local-authority-district/23UB,Cheltenham Borough Council,Community Development,14039929,290815,REDACTED,R6280-COM001,Grants,25/09/2015,1500.00
http://statistics.data.gov.uk/id/local-authority-district/23UB,Cheltenham Borough Council,Community Development,14039385,310715,REDACTED,R6280-COM001,Grants,04/09/2015,1552.00
http://statistics.data.gov.uk/id/local-authority-district/23UB,Cheltenham Borough Council,Built Environment,14039236,7402229998,Dell Corporation Limited,R4530-SUP040,IT - Purchase of Hardware,11/09/2015,5463.77
http://statistics.data.gov.uk/id/local-authority-district/23UB,Cheltenham Borough Council,Corporate Management,14039157,1221,Dohertybaines Limited,R4429-COR001,Services - other fees,01/09/2015,4000.00
http://statistics.data.gov.uk/id/local-authority-district/23UB,Cheltenham Borough Council,Car Parks - Off Street R&M,14039517,444736,DTZ DTL Limited,R2001-CPK101,R & M of Fix & Fit - General,11/09/2015,20000.00
http://statistics.data.gov.uk/id/local-authority-district/23UB,Cheltenham Borough Council,Affordable housing grants,14038524,162088,E.G. Carter & Co. Limited,C5001-CAP225,Contributions,11/09/2015,4459.49
http://statistics.data.gov.uk/id/local-authority-district/23UB,Cheltenham Borough Council,Recreation Centre Repairs & Maintenance,14039272,301267/7/2015,Ener-G Combined Power (South) Limited,R2100-REC111,Electricity,04/09/2015,4456.13
http://statistics.data.gov.uk/id/local-authority-district/23UB,Cheltenham Borough Council,Recreation Centre Repairs & Maintenance,14039525,301267/8/2015,Ener-G Combined Power (South) Limited,R2100-REC111,Electricity,18/09/2015,2788.14
http://statistics.data.gov.uk/id/local-authority-district/23UB,Cheltenham Borough Council,Joint Core Strategy,14039121,gct247-15,Enfusion Limited,R4400-PLP101,Services - Professional Fees,01/09/2015,5052.00
http://statistics.data.gov.uk/id/local-authority-district/23UB,Cheltenham Borough Council,Neighbourhood works,14039633,wm006281,English Landscapes Limited t/a The Landscape Group,C1107-CAH005,Building Works,18/09/2015,77983.84
http://statistics.data.gov.uk/id/local-authority-district/23UB,Cheltenham Borough Council,Neighbourhood works,14039708,wm006340,English Landscapes Limited t/a The Landscape Group,C1107-CAH005,Building Works,25/09/2015,22836.91
http://statistics.data.gov.uk/id/local-authority-district/23UB,Cheltenham Borough Council,Neighbourhood works,14039733,WM006348,English Landscapes Limited t/a The Landscape Group,C1107-CAH005,Building Works,25/09/2015,5319.32
http://statistics.data.gov.uk/id/local-authority-district/23UB,Cheltenham Borough Council,Asbestos Management,14039233,4533,Environmental Management Solutions Limited,C1107-CAH012,Building Works,01/09/2015,10069.50
http://statistics.data.gov.uk/id/local-authority-district/23UB,Cheltenham Borough Council,Property Services,14039534,17501,Evans Jones Limited,R4400-SUP025,Services - Professional Fees,18/09/2015,650.00
http://statistics.data.gov.uk/id/local-authority-district/23UB,Cheltenham Borough Council,"Paths, Fences & Walls",14039707,inv001092,Facilities Management & Builiding Repairs Limited,C1107-CAH021,Building Works,25/09/2015,2007.46
http://statistics.data.gov.uk/id/local-authority-district/23UB,Cheltenham Borough Council,Recreation Centre Repairs & Maintenance,14039450,12242,Francis Catering Equipment Limited,R4003-REC111,Tools & Equipment - R & M,11/09/2015,1166.48
http://statistics.data.gov.uk/id/local-authority-district/23UB,Cheltenham Borough Council,External Improvements,14039240,GP15/013064,G Purchase Construction Limited,C1107-CAH003,Building Works,04/09/2015,78346.15
http://statistics.data.gov.uk/id/local-authority-district/23UB,Cheltenham Borough Council,Supervision and Management,14039210,215,Gaskins Treework Specialists,R2070-HRA110,Tree Work,04/09/2015,697.50
http://statistics.data.gov.uk/id/local-authority-district/23UB,Cheltenham Borough Council,Allotment s,14039635,216,Gaskins Treework Specialists,R2075-OPS004,Grounds Maintenance - Contract,18/09/2015,630.00
http://statistics.data.gov.uk/id/local-authority-district/23UB,Cheltenham Borough Council,Trees,14039212,218,Gaskins Treework Specialists,R2070-PLP006,Tree Work,01/09/2015,517.50
http://statistics.data.gov.uk/id/local-authority-district/23UB,Cheltenham Borough Council,Trees,14039213,219,Gaskins Treework Specialists,R2070-PLP006,Tree Work,01/09/2015,1282.50
http://statistics.data.gov.uk/id/local-authority-district/23UB,Cheltenham Borough Council,Sustainability Measures,14039728,74710,Glevum Heating & Plumbing Limited,C1107-CAH032,Building Works,25/09/2015,3539.58
http://statistics.data.gov.uk/id/local-authority-district/23UB,Cheltenham Borough Council,Democratic Representation and Management,14039176,1800357849,Gloucestershire County Council,R4400-DRM001,Services - Professional Fees,01/09/2015,2500.00
http://statistics.data.gov.uk/id/local-authority-district/23UB,Cheltenham Borough Council,Development Control - Applications,14039489,1800369707,Gloucestershire County Council,R4400-DEV001,Services - Professional Fees,11/09/2015,4828.00
http://statistics.data.gov.uk/id/local-authority-district/23UB,Cheltenham Borough Council,Private Sector Housing Grants,14039537,1800370193,Gloucestershire County Council,R6280-PSH001,Grants,18/09/2015,7975.00
http://statistics.data.gov.uk/id/local-authority-district/23UB,Cheltenham Borough Council,Pensions Backfunding,14039471,800005891,GLOUCESTERSHIRE COUNTY COUNCIL (LGPS ONLY),R1301-SUP038,Enhanced Pension,11/09/2015,16821.23
http://statistics.data.gov.uk/id/local-authority-district/23UB,Cheltenham Borough Council,Pensions Backfunding,14039490,800005938,GLOUCESTERSHIRE COUNTY COUNCIL (LGPS ONLY),R4400-SUP038,Services - Professional Fees,11/09/2015,1158.30
http://statistics.data.gov.uk/id/local-authority-district/23UB,Cheltenham Borough Council,"Cemetery, Crematorium and Churchyards",14039739,11908,Goldingham Contracts Limited,R2075-CCM001,Grounds Maintenance - Contract,25/09/2015,562.00
http://statistics.data.gov.uk/id/local-authority-district/23UB,Cheltenham Borough Council,Corporate Management,14038418,8387679,Grant Thornton UK LLP,R4429-COR001,Services - other fees,01/09/2015,3000.00
http://statistics.data.gov.uk/id/local-authority-district/23UB,Cheltenham Borough Council,Cheltenham Depot,14039117,2888,Greenway Partnership Limited T/A GPL Building Services,R2043-ADB103,R & M of Build Drain Cleaning,01/09/2015,1329.04
http://statistics.data.gov.uk/id/local-authority-district/23UB,Cheltenham Borough Council,Cheltenham Depot,14039118,2890,Greenway Partnership Limited T/A GPL Building Services,R2043-ADB103,R & M of Build Drain Cleaning,01/09/2015,1308.88
http://statistics.data.gov.uk/id/local-authority-district/23UB,Cheltenham Borough Council,Cheltenham Depot,14039361,2913,Greenway Partnership Limited T/A GPL Building Services,R2043-ADB103,R & M of Build Drain Cleaning,11/09/2015,1473.04
http://statistics.data.gov.uk/id/local-authority-district/23UB,Cheltenham Borough Council,Pittville Pump Room Repairs & Maintenance,14039360,2915,Greenway Partnership Limited T/A GPL Building Services,R2062-CUL113,R & M of Build Cyclical Electrical Remedials,11/09/2015,1811.82
http://statistics.data.gov.uk/id/local-authority-district/23UB,Cheltenham Borough Council,Parks & Gardens Operations,14039639,2917,Greenway Partnership Limited T/A GPL Building Services,R2007-OPS001,R & M of Plant Contracts,18/09/2015,1965.00
http://statistics.data.gov.uk/id/local-authority-district/23UB,Cheltenham Borough Council,Parks & Gardens Operations,14039743,2937,Greenway Partnership Limited T/A GPL Building Services,R2007-OPS001,R & M of Plant Contracts,25/09/2015,2779.50
http://statistics.data.gov.uk/id/local-authority-district/23UB,Cheltenham Borough Council,Flood Risk Management,14039738,38189,Halcrow Group Limited,R5001-FRM101,TPP - Major External Contractors,25/09/2015,6379.38
http://statistics.data.gov.uk/id/local-authority-district/23UB,Cheltenham Borough Council,Abandoned Vehicles,14039388,457,Harry Buckland,R4401-STC011,Services - Fees and Charges,18/09/2015,1020.00
http://statistics.data.gov.uk/id/local-authority-district/23UB,Cheltenham Borough Council,Abandoned Vehicles,14039389,458,Harry Buckland,R4401-STC011,Services - Fees and Charges,18/09/2015,760.00
http://statistics.data.gov.uk/id/local-authority-district/23UB,Cheltenham Borough Council,Abandoned Vehicles,14039391,465,Harry Buckland,R4401-STC011,Services - Fees and Charges,18/09/2015,700.00
http://statistics.data.gov.uk/id/local-authority-district/23UB,Cheltenham Borough Council,Abandoned Vehicles,14039392,471,Harry Buckland,R4401-STC011,Services - Fees and Charges,11/09/2015,1000.00
http://statistics.data.gov.uk/id/local-authority-district/23UB,Cheltenham Borough Council,Abandoned Vehicles,14039394,472,Harry Buckland,R4401-STC011,Services - Fees and Charges,11/09/2015,760.00
http://statistics.data.gov.uk/id/local-authority-district/23UB,Cheltenham Borough Council,Abandoned Vehicles,14039397,473,Harry Buckland,R4401-STC011,Services - Fees and Charges,18/09/2015,860.00
http://statistics.data.gov.uk/id/local-authority-district/23UB,Cheltenham Borough Council,Abandoned Vehicles,14039399,474,Harry Buckland,R4401-STC011,Services - Fees and Charges,18/09/2015,560.00
http://statistics.data.gov.uk/id/local-authority-district/23UB,Cheltenham Borough Council,Abandoned Vehicles,14039401,479,Harry Buckland,R4401-STC011,Services - Fees and Charges,18/09/2015,820.00
http://statistics.data.gov.uk/id/local-authority-district/23UB,Cheltenham Borough Council,Property Services,14039044,1005617480,Hays Specialist Recruitment Limited,R1100-SUP025,Agency Staff,01/09/2015,721.28
http://statistics.data.gov.uk/id/local-authority-district/23UB,Cheltenham Borough Council,Property Services,14039043,1005658866,Hays Specialist Recruitment Limited,R1100-SUP025,Agency Staff,01/09/2015,1089.28
http://statistics.data.gov.uk/id/local-authority-district/23UB,Cheltenham Borough Council,Property Services,14039436,1005683777,Hays Specialist Recruitment Limited,R1100-SUP025,Agency Staff,11/09/2015,1089.28
http://statistics.data.gov.uk/id/local-authority-district/23UB,Cheltenham Borough Council,Property Services,14039438,1005703482,Hays Specialist Recruitment Limited,R1100-SUP025,Agency Staff,11/09/2015,1089.28
http://statistics.data.gov.uk/id/local-authority-district/23UB,Cheltenham Borough Council,Property Services,14039437,1005733054,Hays Specialist Recruitment Limited,R1100-SUP025,Agency Staff,11/09/2015,2000.00
http://statistics.data.gov.uk/id/local-authority-district/23UB,Cheltenham Borough Council,Art Gallery & Museum Repairs & Maintenance,14039660,15044,Hellion Environmental Limited,R2008-CUL117,R & M of Build - Reactive Repairs,18/09/2015,1375.00
http://statistics.data.gov.uk/id/local-authority-district/23UB,Cheltenham Borough Council,Art Gallery & Museum Repairs & Maintenance,14039601,15134,Hellion Environmental Limited,R2080-CUL117,Mechanical Services,11/09/2015,520.84
http://statistics.data.gov.uk/id/local-authority-district/23UB,Cheltenham Borough Council,Recreation Centre Repairs & Maintenance,14039585,15148,Hellion Environmental Limited,R2080-REC111,Mechanical Services,11/09/2015,545.63
http://statistics.data.gov.uk/id/local-authority-district/23UB,Cheltenham Borough Council,Cheltenham Municipal Offices,14039888,15171,Hellion Environmental Limited,R2008-ADB101,R & M of Build - Reactive Repairs,25/09/2015,760.06
http://statistics.data.gov.uk/id/local-authority-district/23UB,Cheltenham Borough Council,Repairs and Maintenance,14039225,INV000001622,High Performance Door Solutions Limited,R2021-HRA100,R & M of Build Disabled Adaptations,18/09/2015,2030.20
http://statistics.data.gov.uk/id/local-authority-district/23UB,Cheltenham Borough Council,Cheltenham Municipal Offices,14038767,43718,Hi-Lo Crystal Clear Limited,R2700-ADB101,Contract Cleaning,11/09/2015,1550.00
http://statistics.data.gov.uk/id/local-authority-district/23UB,Cheltenham Borough Council,General Fund Balance Sheet,14039661,CIS Deduct0608-050915,HMRC (CBC - CIS),B6220-BAL100,CIS Deductions Control (reallocated),14/09/2015,907.99
http://statistics.data.gov.uk/id/local-authority-district/23UB,Cheltenham Borough Council,Repairs and Maintenance,14039694,150255AA5,Ian Williams Limited,R2060-HRA100,R & M of Build Cyclical Painting Communal Areas,18/09/2015,6004.19
http://statistics.data.gov.uk/id/local-authority-district/23UB,Cheltenham Borough Council,Built Environment,14039278,152824,Ice Creates Limited,R4411-SUP040,Consultancy Fees,04/09/2015,725.00
http://statistics.data.gov.uk/id/local-authority-district/23UB,Cheltenham Borough Council,Built Environment,14039259,I52824,Ice Creates Limited,R4411-SUP040,Consultancy Fees,11/09/2015,725.00
http://statistics.data.gov.uk/id/local-authority-district/23UB,Cheltenham Borough Council,Car Parks - Off Street Operations,14038969,29630,Imperial Civil Enforcement Solutions Limited,R4534-CPK001,IT - Maint Agreements,04/09/2015,3250.00
http://statistics.data.gov.uk/id/local-authority-district/23UB,Cheltenham Borough Council,Sports & Open Spaces Operations,14039187,15/037,J P North (Farmer),R2071-OPS002,Open Spaces and Grassed Areas,18/09/2015,1050.00
http://statistics.data.gov.uk/id/local-authority-district/23UB,Cheltenham Borough Council,Press & PR/Communications,14039182,34016,Jadu Limited,R4531-SUP018,IT - Purchase of Software,04/09/2015,1600.00
http://statistics.data.gov.uk/id/local-authority-district/23UB,Cheltenham Borough Council,Parks & Gardens Operations,14039657,2053,Jayson R C Bayliss,R2075-OPS001,Grounds Maintenance - Contract,18/09/2015,1655.00
http://statistics.data.gov.uk/id/local-authority-district/23UB,Cheltenham Borough Council,Parks & Gardens Operations,14039657,2053,Jayson R C Bayliss,R2075-OPS001,Grounds Maintenance - Contract,18/09/2015,1670.00
http://statistics.data.gov.uk/id/local-authority-district/23UB,Cheltenham Borough Council,Play areas enhancement,14039711,2056,Jayson R C Bayliss,C4000-CAP102,Acquisition of Equipment,25/09/2015,975.00
http://statistics.data.gov.uk/id/local-authority-district/23UB,Cheltenham Borough Council,Development costs - Garage Sites 2a,14039194,821388,JMP Consultants Limited,C1107-CAH052,Building Works,01/09/2015,1958.65
http://statistics.data.gov.uk/id/local-authority-district/23UB,Cheltenham Borough Council,Supervision and Management,14039420,RND300715/comb,John Gillman & Sons (Electrical) Limited (Gillmans Appliance),R4002-HRA110,Tools & Equipment - Lease/Rental,11/09/2015,1980.71
http://statistics.data.gov.uk/id/local-authority-district/23UB,Cheltenham Borough Council,Development costs - Garage Sites 2a,14039424,EN002-0184010,Jones Lang Lasalle Limited,C1107-CAH052,Building Works,11/09/2015,2500.00
http://statistics.data.gov.uk/id/local-authority-district/23UB,Cheltenham Borough Council,New Cremators,14038967,1095,Lepus Consulting Limited,C1005-CAP001,Surveyors Fees,01/09/2015,673.99
http://statistics.data.gov.uk/id/local-authority-district/23UB,Cheltenham Borough Council,Repairs and Maintenance,14039729,1112756,Liberty Gas Group,R2040-HRA100,R & M of Build Central Heating,25/09/2015,37664.34
http://statistics.data.gov.uk/id/local-authority-district/23UB,Cheltenham Borough Council,New Heating Installations,14039730,1112757,Liberty Gas Group,C1107-CAH009,Building Works,25/09/2015,3485.00
http://statistics.data.gov.uk/id/local-authority-district/23UB,Cheltenham Borough Council,Pest Control,14039758,274,Life in the Rainforest,R4429-REG018,Services - other fees,25/09/2015,800.00
http://statistics.data.gov.uk/id/local-authority-district/23UB,Cheltenham Borough Council,Neighbourhood works,14039731,749,M J Loveridge Limited,C1107-CAH005,Building Works,25/09/2015,1960.00
http://statistics.data.gov.uk/id/local-authority-district/23UB,Cheltenham Borough Council,New Cremators,14039456,9599,Mobex Limited,C6002-CAP001,Fees - Agency,11/09/2015,1249.03
http://statistics.data.gov.uk/id/local-authority-district/23UB,Cheltenham Borough Council,Repairs and Maintenance,14039762,INV23396,Morgan Lambert Limited,R2040-HRA100,R & M of Build Central Heating,25/09/2015,836.00
http://statistics.data.gov.uk/id/local-authority-district/23UB,Cheltenham Borough Council,"Cemetery, Crematorium and Churchyards",14039748,280815,Mr J Sureda,R4401-CCM001,Services - Fees and Charges,25/09/2015,806.62
http://statistics.data.gov.uk/id/local-authority-district/23UB,Cheltenham Borough Council,Sports & Open Spaces Operations,14039227,63,Mrs A North (Farmer/Grazier),R2071-OPS002,Open Spaces and Grassed Areas,04/09/2015,1750.00
http://statistics.data.gov.uk/id/local-authority-district/23UB,Cheltenham Borough Council,Joint Core Strategy,14039751,92500,Nathaniel Lichfield & Partners,R4400-PLP101,Services - Professional Fees,25/09/2015,9325.85
http://statistics.data.gov.uk/id/local-authority-district/23UB,Cheltenham Borough Council,Recreation Centre Repairs & Maintenance,14039435,2042,Nick Bevan Consulting Limited,R4400-REC111,Services - Professional Fees,11/09/2015,1150.00
http://statistics.data.gov.uk/id/local-authority-district/23UB,Cheltenham Borough Council,Cemetery & Crematorium Repairs & Maintenance,14039434,2135,Nick Bevan Consulting Limited,R4400-CCM111,Services - Professional Fees,11/09/2015,1450.00
http://statistics.data.gov.uk/id/local-authority-district/23UB,Cheltenham Borough Council,Internal Improvements,14039234,8867,NKS Contracts (Central) Limited,C1107-CAH004,Building Works,04/09/2015,46410.76
http://statistics.data.gov.uk/id/local-authority-district/23UB,Cheltenham Borough Council,Town Hall Repairs & Maintenance,14039405,15071072,Novus Property Solutions Limited,R2004-CUL112,R & M of Build Programmed,11/09/2015,2891.20
http://statistics.data.gov.uk/id/local-authority-district/23UB,Cheltenham Borough Council,Town Hall Repairs & Maintenance,14039408,15071075,Novus Property Solutions Limited,R2004-CUL112,R & M of Build Programmed,11/09/2015,1000.00
http://statistics.data.gov.uk/id/local-authority-district/23UB,Cheltenham Borough Council,Town Hall Repairs & Maintenance,14039407,15071076,Novus Property Solutions Limited,R2004-CUL112,R & M of Build Programmed,11/09/2015,2314.00
http://statistics.data.gov.uk/id/local-authority-district/23UB,Cheltenham Borough Council,Town Hall Repairs & Maintenance,14039406,15071077,Novus Property Solutions Limited,R2004-CUL112,R & M of Build Programmed,11/09/2015,2240.36
http://statistics.data.gov.uk/id/local-authority-district/23UB,Cheltenham Borough Council,CCTV,14039513,603349,OpenView Security Solutions Limited,R4003-CCT001,Tools & Equipment - R & M,11/09/2015,1419.17
http://statistics.data.gov.uk/id/local-authority-district/23UB,Cheltenham Borough Council,Repairs and Maintenance,14039086,O0384323,Orbis Protect Limited,R2012-HRA100,R & M of Build Standby and Call Out,18/09/2015,1087.03
http://statistics.data.gov.uk/id/local-authority-district/23UB,Cheltenham Borough Council,Repairs and Maintenance,14039978,O0386735,Orbis Protect Limited,R2012-HRA100,R & M of Build Standby and Call Out,25/09/2015,1047.03
http://statistics.data.gov.uk/id/local-authority-district/23UB,Cheltenham Borough Council,Joint Core Strategy,14039204,392290,Ove Arup & Partners Limited,R4400-PLP101,Services - Professional Fees,04/09/2015,1768.00
http://statistics.data.gov.uk/id/local-authority-district/23UB,Cheltenham Borough Council,Joint Core Strategy,14039461,392291,Ove Arup & Partners Limited,R4400-PLP101,Services - Professional Fees,11/09/2015,5897.00
http://statistics.data.gov.uk/id/local-authority-district/23UB,Cheltenham Borough Council,Car Parks - Off Street Operations,14038581,UK80112,Parkeon Limited,R4003-CPK001,Tools & Equipment - R & M,01/09/2015,514.50
http://statistics.data.gov.uk/id/local-authority-district/23UB,Cheltenham Borough Council,Car Parks - Off Street Operations,14039413,UK81179,Parkeon Limited,R4401-CPK001,Services - Fees and Charges,11/09/2015,2060.08
http://statistics.data.gov.uk/id/local-authority-district/23UB,Cheltenham Borough Council,"Cemetery, Crematorium and Churchyards",14039764,INV2208,PC Office Chairs,R4005-CCM001,Furniture - Purchases,25/09/2015,696.00
http://statistics.data.gov.uk/id/local-authority-district/23UB,Cheltenham Borough Council,Joint Core Strategy,14039250,119453 MFE,Peter Brett Associates LLP,R4400-PLP101,Services - Professional Fees,04/09/2015,2431.60
http://statistics.data.gov.uk/id/local-authority-district/23UB,Cheltenham Borough Council,Joint Core Strategy,14039246,120494 MFE,Peter Brett Associates LLP,R4400-PLP101,Services - Professional Fees,04/09/2015,3676.80
http://statistics.data.gov.uk/id/local-authority-district/23UB,Cheltenham Borough Council,Cemetery & Crematorium Repairs & Maintenance,14039269,3216,PJ Combustion Solutions Limited,R4003-CCM111,Tools & Equipment - R & M,04/09/2015,1614.00
http://statistics.data.gov.uk/id/local-authority-district/23UB,Cheltenham Borough Council,Cemetery & Crematorium Repairs & Maintenance,14039268,3219,PJ Combustion Solutions Limited,R2083-CCM111,R&M of Build - Routine,04/09/2015,2163.00
http://statistics.data.gov.uk/id/local-authority-district/23UB,Cheltenham Borough Council,Development costs - Garage Sites 2a,14039556,5303,Powersave Direct Limited,C1107-CAH052,Building Works,11/09/2015,740.41
http://statistics.data.gov.uk/id/local-authority-district/23UB,Cheltenham Borough Council,Development costs - Garage Sites 2a,14039557,5304,Powersave Direct Limited,C1107-CAH052,Building Works,11/09/2015,740.41
http://statistics.data.gov.uk/id/local-authority-district/23UB,Cheltenham Borough Council,Development costs - Garage Sites 2a,14039558,5305,Powersave Direct Limited,C1107-CAH052,Building Works,11/09/2015,740.41
http://statistics.data.gov.uk/id/local-authority-district/23UB,Cheltenham Borough Council,Development costs - Garage Sites 2a,14039559,5306,Powersave Direct Limited,C1107-CAH052,Building Works,11/09/2015,740.41
http://statistics.data.gov.uk/id/local-authority-district/23UB,Cheltenham Borough Council,Development costs - Swindon Road,14039725,PSD-Feas441,Powersave Direct Limited,C1107-CAH050,Building Works,25/09/2015,740.41
http://statistics.data.gov.uk/id/local-authority-district/23UB,Cheltenham Borough Council,Window & Door Renewals,14039720,SI-733,Prestige Fire Door Services Limited,C1107-CAH017,Building Works,25/09/2015,2156.00
http://statistics.data.gov.uk/id/local-authority-district/23UB,Cheltenham Borough Council,Sports & Open Spaces Operations,14039749,433,Pro-Teq Surfacing (UK) Limited,R4003-OPS002,Tools & Equipment - R & M,25/09/2015,2360.00
http://statistics.data.gov.uk/id/local-authority-district/23UB,Cheltenham Borough Council,Joint Core Strategy,14039552,PINF705226,Randstad Employment Bureau Limited,R4400-PLP101,Services - Professional Fees,11/09/2015,1740.00
http://statistics.data.gov.uk/id/local-authority-district/23UB,Cheltenham Borough Council,Joint Core Strategy,14039249,PINF705227,Randstad Employment Bureau Limited,R4401-PLP101,Services - Fees and Charges,04/09/2015,565.50
http://statistics.data.gov.uk/id/local-authority-district/23UB,Cheltenham Borough Council,Joint Core Strategy,14039551,PINF705228,Randstad Employment Bureau Limited,R4400-PLP101,Services - Professional Fees,11/09/2015,1740.00
http://statistics.data.gov.uk/id/local-authority-district/23UB,Cheltenham Borough Council,Property Services,14039282,OP/138810,RIBA Enterprises Limited,R4531-SUP025,IT - Purchase of Software,11/09/2015,2493.00
http://statistics.data.gov.uk/id/local-authority-district/23UB,Cheltenham Borough Council,Printing Services,14039486,100294770,Ricoh UK Limited,R4304-SUP022,Photocopier Operating Lease,11/09/2015,4728.56
http://statistics.data.gov.uk/id/local-authority-district/23UB,Cheltenham Borough Council,Council Tax Collection,14039113,9050307151,Royal Mail,R4521-LTC001,Postages - franking machine,01/09/2015,1207.50
http://statistics.data.gov.uk/id/local-authority-district/23UB,Cheltenham Borough Council,Council Tax Collection,14039410,9050406125,Royal Mail,R4521-LTC001,Postages - franking machine,11/09/2015,513.29
http://statistics.data.gov.uk/id/local-authority-district/23UB,Cheltenham Borough Council,Registration of Electors,14039409,9050433375,Royal Mail,R4520-ELE001,Postages - stamps,11/09/2015,4609.70
http://statistics.data.gov.uk/id/local-authority-district/23UB,Cheltenham Borough Council,Registration of Electors,14039546,9050515492,Royal Mail,R4520-ELE001,Postages - stamps,11/09/2015,1242.79
http://statistics.data.gov.uk/id/local-authority-district/23UB,Cheltenham Borough Council,Repairs and Maintenance,14039520,652,SAS EPC,R2018-HRA100,R & M of Build Voids Energy Performance Certificates,11/09/2015,533.00
http://statistics.data.gov.uk/id/local-authority-district/23UB,Cheltenham Borough Council,Car Park Income Collection,14039179,510633,Security Plus+ Limited,R4435-CPK002,Cash Collection Contract,01/09/2015,863.26
http://statistics.data.gov.uk/id/local-authority-district/23UB,Cheltenham Borough Council,Recreation Centre Repairs & Maintenance,14039468,867097408,Severn Trent Water,R2402-REC111,Sewerage and Environmental Services,11/09/2015,1812.00
http://statistics.data.gov.uk/id/local-authority-district/23UB,Cheltenham Borough Council,Warm & well grants,14039478,6454,Severn Wye Energy Agency Limited,C5000-CAP224,Grants,11/09/2015,10000.00
http://statistics.data.gov.uk/id/local-authority-district/23UB,Cheltenham Borough Council,Income and Expenditure on Investment Properties and Changes in Their Fair Value,14039506,77160,Signcraft Limited,R2205-FIE040,Service Charges,18/09/2015,1285.47
http://statistics.data.gov.uk/id/local-authority-district/23UB,Cheltenham Borough Council,Printing Services,14039787,346824,Springfield Business Papers Limited,R4306-SUP022,Photocopier Charges - Consumables,25/09/2015,1035.00
http://statistics.data.gov.uk/id/local-authority-district/23UB,Cheltenham Borough Council,Cemetery & Crematorium Repairs & Maintenance,14039460,286/06/15,Stopher Associates Limited,R2083-CCM111,R&M of Build - Routine,11/09/2015,1500.00
http://statistics.data.gov.uk/id/local-authority-district/23UB,Cheltenham Borough Council,Parks & Gardens Operations,14039636,24369,Streetmaster (South Wales) Limited,R2075-OPS001,Grounds Maintenance - Contract,18/09/2015,5686.00
http://statistics.data.gov.uk/id/local-authority-district/23UB,Cheltenham Borough Council,Parliamentary Elections,14039453,401259805,Stroud District Council,R4317-ELE004,Non Staff Advertising,11/09/2015,868.00
http://statistics.data.gov.uk/id/local-authority-district/23UB,Cheltenham Borough Council,Parks & Gardens Operations,14039919,3623,Subsidence Management Limited,R4964-OPS001,Insurance Excess,25/09/2015,700.00
http://statistics.data.gov.uk/id/local-authority-district/23UB,Cheltenham Borough Council,Development costs - Garage Sites 2a,14039640,150325,Subsight Surveys Limited,C1107-CAH052,Building Works,18/09/2015,575.00
http://statistics.data.gov.uk/id/local-authority-district/23UB,Cheltenham Borough Council,Sports & Open Spaces Repairs & Maintenance,14039305,4828,System Six Design & Build,R2004-OPS122,R & M of Build Programmed,11/09/2015,1255.00
http://statistics.data.gov.uk/id/local-authority-district/23UB,Cheltenham Borough Council,Income and Expenditure on Investment Properties and Changes in Their Fair Value,14039619,4839,System Six Design & Build,R2014-FIE040,R & M of Build Windows,11/09/2015,905.85
http://statistics.data.gov.uk/id/local-authority-district/23UB,Cheltenham Borough Council,Disabled Facility Grants,14039473,REDACTED,T P G Disable Aids Limited (TPG),C5000-CAP221,Grants,11/09/2015,1508.00
http://statistics.data.gov.uk/id/local-authority-district/23UB,Cheltenham Borough Council,Income and Expenditure on Investment Properties and Changes in Their Fair Value,14039488,DEBT104256,Tewkesbury Borough Council,R4420-FIE040,Legal Expenses And Court Costs,11/09/2015,580.32
http://statistics.data.gov.uk/id/local-authority-district/23UB,Cheltenham Borough Council,Income and Expenditure on Investment Properties and Changes in Their Fair Value,14039488,DEBT104256,Tewkesbury Borough Council,R4420-FIE040,Legal Expenses And Court Costs,11/09/2015,1648.00
http://statistics.data.gov.uk/id/local-authority-district/23UB,Cheltenham Borough Council,Building Control - Fee Earning Work,14039712,debt104271,Tewkesbury Borough Council,R4401-BUC001,Services - Fees and Charges,25/09/2015,20083.78
http://statistics.data.gov.uk/id/local-authority-district/23UB,Cheltenham Borough Council,Cultural - Service Management and Support Services,14039184,70010399,The Cheltenham Trust,R5001-CSM001,TPP - Major External Contractors,01/09/2015,80636.00
http://statistics.data.gov.uk/id/local-authority-district/23UB,Cheltenham Borough Council,Town Hall Operations,14039491,70010512,The Cheltenham Trust,R9125-CUL102,Public Telephone Income,11/09/2015,513.05
http://statistics.data.gov.uk/id/local-authority-district/23UB,Cheltenham Borough Council,Art Gallery & Museum Development,14038932,1456,The Hub Consulting Limited,C1105-CAP121,Design Services,04/09/2015,13975.33
http://statistics.data.gov.uk/id/local-authority-district/23UB,Cheltenham Borough Council,General Fund Balance Sheet,14039482,8.50028E+11,The Midcounties Co-operative,B1670-BAL100,Assets under construction - Other depreciation/impairment movements,11/09/2015,2650.00
http://statistics.data.gov.uk/id/local-authority-district/23UB,Cheltenham Borough Council,Development Control - Applications,14039101,1070773,The Oyster Partnership Limited,R1100-DEV001,Agency Staff,01/09/2015,1127.33
http://statistics.data.gov.uk/id/local-authority-district/23UB,Cheltenham Borough Council,Development Control - Applications,14039247,1071088,The Oyster Partnership Limited,R1100-DEV001,Agency Staff,04/09/2015,581.25
http://statistics.data.gov.uk/id/local-authority-district/23UB,Cheltenham Borough Council,Development Control - Applications,14039643,1071394,The Oyster Partnership Limited,R1100-DEV001,Agency Staff,18/09/2015,1505.53
http://statistics.data.gov.uk/id/local-authority-district/23UB,Cheltenham Borough Council,Development Control - Applications,14039645,1071670,The Oyster Partnership Limited,R1100-DEV001,Agency Staff,18/09/2015,1242.91
http://statistics.data.gov.uk/id/local-authority-district/23UB,Cheltenham Borough Council,Development Control - Applications,14039727,1072261,The Oyster Partnership Limited,R1100-DEV001,Agency Staff,25/09/2015,1087.50
http://statistics.data.gov.uk/id/local-authority-district/23UB,Cheltenham Borough Council,Disabled Facility Grants,14039898,15/00051/DMOOC,The Surveying Practice - Client Account,C5000-CAP221,Grants,25/09/2015,7788.28
http://statistics.data.gov.uk/id/local-authority-district/23UB,Cheltenham Borough Council,Disabled Facility Grants,14039902,REDACTED,The Surveying Practice - Client Account,C5000-CAP221,Grants,25/09/2015,27761.80
http://statistics.data.gov.uk/id/local-authority-district/23UB,Cheltenham Borough Council,Disabled Facility Grants,14039899,REDACTED,The Surveying Practice - Client Account,C5000-CAP221,Grants,25/09/2015,2720.07
http://statistics.data.gov.uk/id/local-authority-district/23UB,Cheltenham Borough Council,Adaptations for the Disabled (CBC),14039901,REDACTED,The Surveying Practice - Client Account,C1107-CAH028,Building Works,25/09/2015,7881.23
http://statistics.data.gov.uk/id/local-authority-district/23UB,Cheltenham Borough Council,Adaptations for the Disabled (CBC),14039896,REDACTED,The Surveying Practice - Client Account,C1107-CAH028,Building Works,25/09/2015,8033.05
http://statistics.data.gov.uk/id/local-authority-district/23UB,Cheltenham Borough Council,Disabled Facility Grants,14039480,REDACTED,The Surveying Practice - Client Account,C5000-CAP221,Grants,11/09/2015,9000.50
http://statistics.data.gov.uk/id/local-authority-district/23UB,Cheltenham Borough Council,Car Parks - Off Street Operations,14039396,CI15020102,ThyssenKrupp Elevator UK,R2008-CPK001,R & M of Build - Reactive Repairs,11/09/2015,1987.00
http://statistics.data.gov.uk/id/local-authority-district/23UB,Cheltenham Borough Council,Recreation Centre Repairs & Maintenance,14039432,146642,TN Water Limited T/A Aquaid (Midlands and South Wales),R2085-REC111,R&M of Fix & Fit - Internal,11/09/2015,1340.40
http://statistics.data.gov.uk/id/local-authority-district/23UB,Cheltenham Borough Council,Vehicles & recycling caddies,14039189,12049,Trash UK Limited,C2000-CAP301,Acquisition of Vehicles,18/09/2015,32000.00
http://statistics.data.gov.uk/id/local-authority-district/23UB,Cheltenham Borough Council,Pedestrian Wayfinding,14039677,TRUE001086,Trueform Engineering Limited,C4001-CAP155,Furniture,18/09/2015,2575.20
http://statistics.data.gov.uk/id/local-authority-district/23UB,Cheltenham Borough Council,Supervision and Management,14038961,3IN/10265428,Tunstall Healthcare (UK) Limited,R4000-HRA110,Equipment Purchase,01/09/2015,772.00
http://statistics.data.gov.uk/id/local-authority-district/23UB,Cheltenham Borough Council,Highways Agency Verges & Trees,14039679,60006481,Ubico Limited,R5001-ESR001,TPP - Major External Contractors,18/09/2015,23720.83
http://statistics.data.gov.uk/id/local-authority-district/23UB,Cheltenham Borough Council,Sports & Open Spaces Operations,14039679,60006481,Ubico Limited,R5001-OPS002,TPP - Major External Contractors,18/09/2015,49405.83
http://statistics.data.gov.uk/id/local-authority-district/23UB,Cheltenham Borough Council,Arle Road Nursery Operations,14039679,60006481,Ubico Limited,R5001-OPS101,TPP - Major External Contractors,18/09/2015,14624.17
http://statistics.data.gov.uk/id/local-authority-district/23UB,Cheltenham Borough Council,Street Cleaning,14039679,60006481,Ubico Limited,R5001-STC001,TPP - Major External Contractors,18/09/2015,76410.00
http://statistics.data.gov.uk/id/local-authority-district/23UB,Cheltenham Borough Council,Public Conveniences,14039679,60006481,Ubico Limited,R5001-REG019,TPP - Major External Contractors,18/09/2015,6239.17
http://statistics.data.gov.uk/id/local-authority-district/23UB,Cheltenham Borough Council,Supervision and Management,14039679,60006481,Ubico Limited,R2071-HRA110,Open Spaces and Grassed Areas,18/09/2015,27755.67
http://statistics.data.gov.uk/id/local-authority-district/23UB,Cheltenham Borough Council,Household Waste,14039679,60006481,Ubico Limited,R5001-WST001,TPP - Major External Contractors,18/09/2015,100665.00
http://statistics.data.gov.uk/id/local-authority-district/23UB,Cheltenham Borough Council,Trade Waste,14039679,60006481,Ubico Limited,R5001-TRW001,TPP - Major External Contractors,18/09/2015,43815.00
http://statistics.data.gov.uk/id/local-authority-district/23UB,Cheltenham Borough Council,Recycling Centres,14039679,60006481,Ubico Limited,R5001-RYC004,TPP - Major External Contractors,18/09/2015,43681.67
http://statistics.data.gov.uk/id/local-authority-district/23UB,Cheltenham Borough Council,Bring Sites,14039679,60006481,Ubico Limited,R5001-RYC005,TPP - Major External Contractors,18/09/2015,11303.33
http://statistics.data.gov.uk/id/local-authority-district/23UB,Cheltenham Borough Council,Recycling Collection Schemes,14039679,60006481,Ubico Limited,R5001-RYC006,TPP - Major External Contractors,18/09/2015,115078.33
http://statistics.data.gov.uk/id/local-authority-district/23UB,Cheltenham Borough Council,Green Waste,14039679,60006481,Ubico Limited,R5001-RYC002,TPP - Major External Contractors,18/09/2015,25513.33
http://statistics.data.gov.uk/id/local-authority-district/23UB,Cheltenham Borough Council,Parks & Gardens Operations,14039679,60006481,Ubico Limited,R5001-OPS001,TPP - Major External Contractors,18/09/2015,43088.33
http://statistics.data.gov.uk/id/local-authority-district/23UB,Cheltenham Borough Council,Parks & Gardens Operations,14039721,60006884,Ubico Limited,R5001-OPS001,TPP - Major External Contractors,25/09/2015,43088.33
http://statistics.data.gov.uk/id/local-authority-district/23UB,Cheltenham Borough Council,Highways Agency Verges & Trees,14039721,60006884,Ubico Limited,R5001-ESR001,TPP - Major External Contractors,25/09/2015,23720.83
http://statistics.data.gov.uk/id/local-authority-district/23UB,Cheltenham Borough Council,Sports & Open Spaces Operations,14039721,60006884,Ubico Limited,R5001-OPS002,TPP - Major External Contractors,25/09/2015,49405.83
http://statistics.data.gov.uk/id/local-authority-district/23UB,Cheltenham Borough Council,Arle Road Nursery Operations,14039721,60006884,Ubico Limited,R5001-OPS101,TPP - Major External Contractors,25/09/2015,14624.17
http://statistics.data.gov.uk/id/local-authority-district/23UB,Cheltenham Borough Council,Street Cleaning,14039721,60006884,Ubico Limited,R5001-STC001,TPP - Major External Contractors,25/09/2015,76410.00
http://statistics.data.gov.uk/id/local-authority-district/23UB,Cheltenham Borough Council,Public Conveniences,14039721,60006884,Ubico Limited,R5001-REG019,TPP - Major External Contractors,25/09/2015,6239.17
http://statistics.data.gov.uk/id/local-authority-district/23UB,Cheltenham Borough Council,Supervision and Management,14039721,60006884,Ubico Limited,R2071-HRA110,Open Spaces and Grassed Areas,25/09/2015,27755.67
http://statistics.data.gov.uk/id/local-authority-district/23UB,Cheltenham Borough Council,Household Waste,14039721,60006884,Ubico Limited,R5001-WST001,TPP - Major External Contractors,25/09/2015,100665.00
http://statistics.data.gov.uk/id/local-authority-district/23UB,Cheltenham Borough Council,Trade Waste,14039721,60006884,Ubico Limited,R5001-TRW001,TPP - Major External Contractors,25/09/2015,43815.00
http://statistics.data.gov.uk/id/local-authority-district/23UB,Cheltenham Borough Council,Recycling Centres,14039721,60006884,Ubico Limited,R5001-RYC004,TPP - Major External Contractors,25/09/2015,43681.67
http://statistics.data.gov.uk/id/local-authority-district/23UB,Cheltenham Borough Council,Bring Sites,14039721,60006884,Ubico Limited,R5001-RYC005,TPP - Major External Contractors,25/09/2015,11303.33
http://statistics.data.gov.uk/id/local-authority-district/23UB,Cheltenham Borough Council,Recycling Collection Schemes,14039721,60006884,Ubico Limited,R5001-RYC006,TPP - Major External Contractors,25/09/2015,115078.33
http://statistics.data.gov.uk/id/local-authority-district/23UB,Cheltenham Borough Council,Green Waste,14039721,60006884,Ubico Limited,R5001-RYC002,TPP - Major External Contractors,25/09/2015,25513.33
http://statistics.data.gov.uk/id/local-authority-district/23UB,Cheltenham Borough Council,Building Control - Fee Earning Work,14039188,10174609,UBM Information Limited (NOT Subscriptions),R1700-BUC001,Staff Advertising Costs,04/09/2015,1020.00
http://statistics.data.gov.uk/id/local-authority-district/23UB,Cheltenham Borough Council,GO ICT Centre of Excellence,14039223,12054129,Unit4 Business Software,R4539-SUP101,IT - Consultancy,01/09/2015,4400.00
http://statistics.data.gov.uk/id/local-authority-district/23UB,Cheltenham Borough Council,Joint Core Strategy,14039203,2.5E+13,Valuation Office Agency (VOA),R4400-PLP101,Services - Professional Fees,04/09/2015,5362.00
http://statistics.data.gov.uk/id/local-authority-district/23UB,Cheltenham Borough Council,Bulky Household Waste,14039009,17/15,Vision 21,R4401-WST004,Services - Fees and Charges,01/09/2015,3731.25
http://statistics.data.gov.uk/id/local-authority-district/23UB,Cheltenham Borough Council,Bulky Household Waste,14039722,19/15,Vision 21,R4401-WST004,Services - Fees and Charges,25/09/2015,3293.75
http://statistics.data.gov.uk/id/local-authority-district/23UB,Cheltenham Borough Council,Repairs and Maintenance,14039760,2247,West Midlands Services Limited,R2045-HRA100,R & M of Build Door Entry,25/09/2015,1216.52
http://statistics.data.gov.uk/id/local-authority-district/23UB,Cheltenham Borough Council,Repairs and Maintenance,14039759,2253,West Midlands Services Limited,R2045-HRA100,R & M of Build Door Entry,25/09/2015,3935.80
http://statistics.data.gov.uk/id/local-authority-district/23UB,Cheltenham Borough Council,ICT,14039054,33089843,West Oxfordshire District Council,R4539-SUP005,IT - Consultancy,01/09/2015,11325.00
http://statistics.data.gov.uk/id/local-authority-district/23UB,Cheltenham Borough Council,Prince of Wales Stadium Repairs & Maintenance,14039458,2529,White Line Services International Limited,R2700-REC112,Contract Cleaning,11/09/2015,1350.00
http://statistics.data.gov.uk/id/local-authority-district/23UB,Cheltenham Borough Council,Parks & Gardens Operations,14039232,114619/M,Wybone Limited,R2075-OPS001,Grounds Maintenance - Contract,04/09/2015,5213.78
http://statistics.data.gov.uk/id/local-authority-district/23UB,Cheltenham Borough Council,Community Welfare Grants,14039671,POS ACTS BENHALL,Youth and Community Services Limited,R6280-GBD001,Grants,18/09/2015,2440.00
http://statistics.data.gov.uk/id/local-authority-district/23UB,Cheltenham Borough Council,"Cemetery, Crematorium and Churchyards",14039624,cm632,CAMEO LTD,R4400-CCM001,Services - Professional Fees,18/09/2015,46074.24
http://statistics.data.gov.uk/id/local-authority-district/23UB,Cheltenham Borough Council,Property Services,14039696,1,J F Rees,R2004-SUP025,R & M of Build Programmed,25/09/2015,4264.23
http://statistics.data.gov.uk/id/local-authority-district/23UB,Cheltenham Borough Council,Property Services,14039696,1,J F Rees,R2004-SUP025,R & M of Build Programmed,25/09/2015,546.77
http://statistics.data.gov.uk/id/local-authority-district/23UB,Cheltenham Borough Council,Building Control - Fee Earning Work,14039674,140915,J Harper and Sons (Leominster) Ltd,R9301-BUC001,Fees - Building Regulations,18/09/2015,1045.00
http://statistics.data.gov.uk/id/local-authority-district/23UB,Cheltenham Borough Council,Rent Control,14039530,Rent Refund (REDACTED),REDACTED,R9910-HRA900,Refund of Overpiad Rent,11/09/2015,1195.70
http://statistics.data.gov.uk/id/local-authority-district/23UB,Cheltenham Borough Council,Building Control - Fee Earning Work,14039626,REDACTED - expenses,REDACTED,R4980-BUC001,Miscellaneous Expenses,18/09/2015,704.00
http://statistics.data.gov.uk/id/local-authority-district/23UB,Cheltenham Borough Council,Homelessness,14039780,Deposit  - REDACTED,REDACTED,R6280-HOM001,Grants,25/09/2015,600.00
http://statistics.data.gov.uk/id/local-authority-district/23UB,Cheltenham Borough Council,Rent Control,14039528,Rent Refund (REDACTED) 080915,Osea Malamalanitabua,R9910-HRA900,Refund of Overpiad Rent,11/09/2015,822.40
http://statistics.data.gov.uk/id/local-authority-district/23UB,Cheltenham Borough Council,Homelessness,14039693,REDACTED,PHILLIP PUGH,R6280-HOM001,Grants,25/09/2015,600.00
http://statistics.data.gov.uk/id/local-authority-district/23UB,Cheltenham Borough Council,Community Welfare Grants,14039666,COM.PRIDE 110915,SPRA,R6280-GBD001,Grants,18/09/2015,527.15
http://statistics.data.gov.uk/id/local-authority-district/23UB,Cheltenham Borough Council,Supervision and Management,10016493,Direct debit,SOUTHERN ELECTRIC,R2100-HRA110,Electricity,03/09/2015,6811.12
http://statistics.data.gov.uk/id/local-authority-district/23UB,Cheltenham Borough Council,Treasury Management,10016540,Direct debit,CARDNET SVC CHG 0738,R4428-COR006,Services - credit card charges,14/09/2015,1877.46
http://statistics.data.gov.uk/id/local-authority-district/23UB,Cheltenham Borough Council,Treasury Management,10016540,Direct debit,CARDNET SVC CHG 1602,R4428-COR006,Services - credit card charges,14/09/2015,808.49
http://statistics.data.gov.uk/id/local-authority-district/23UB,Cheltenham Borough Council,Treasury Management,10016540,Direct debit,CARDNET SVC CHG 1866,R4428-COR006,Services - credit card charges,14/09/2015,1549.62
http://statistics.data.gov.uk/id/local-authority-district/23UB,Cheltenham Borough Council,Art Gallery & Museum Repairs & Maintenance,10016531,Direct debit,E.ON - AGM,R2100-CUL117,Electricity,16/09/2015,2501.37
http://statistics.data.gov.uk/id/local-authority-district/23UB,Cheltenham Borough Council,Cheltenham Depot,10016531,Direct debit,E.ON - CENTRAL DEPOT,R2100-ADB103,Electricity,16/09/2015,2009.97
http://statistics.data.gov.uk/id/local-authority-district/23UB,Cheltenham Borough Council,Cheltenham Municipal Offices,10016531,Direct debit,E.ON - MO,R2100-ADB101,Electricity,16/09/2015,3927.26
http://statistics.data.gov.uk/id/local-authority-district/23UB,Cheltenham Borough Council,Recreation Centre Repairs & Maintenance,10016531,Direct debit,E.ON - REC CENTRE,R2100-REC111,Electricity,16/09/2015,2743.13
http://statistics.data.gov.uk/id/local-authority-district/23UB,Cheltenham Borough Council,Recreation Centre Repairs & Maintenance,10016531,Direct debit,E.ON - SWIMMING POOL,R2100-REC111,Electricity,16/09/2015,2719.57
http://statistics.data.gov.uk/id/local-authority-district/23UB,Cheltenham Borough Council,Town Hall Repairs & Maintenance,10016531,Direct debit,E.ON - TH,R2100-CUL112,Electricity,16/09/2015,2599.34
http://statistics.data.gov.uk/id/local-authority-district/23UB,Cheltenham Borough Council,Treasury Management,10016632,Direct debit,SERVICE CHARGES - AUG,R4403-COR006,Bank Charges,28/09/2015,1583.17
http://statistics.data.gov.uk/id/local-authority-district/23UB,Cheltenham Borough Council,Arle Road Nursery Operations,10016496,Direct debit,SEVERN TRENT WATER,R2401-OPS101,Water Services - Metered,08/09/2015,2862.35
http://statistics.data.gov.uk/id/local-authority-district/23UB,Cheltenham Borough Council,Cheltenham Depot,10016642,Direct debit,SEVERN TRENT WATER,R2401-ADB103,Water Services - Metered,24/09/2015,688.61
http://statistics.data.gov.uk/id/local-authority-district/23UB,Cheltenham Borough Council,Cheltenham Depot,10016642,Direct debit,SEVERN TRENT WATER,R2402-ADB103,Sewerage and Environmental Services,24/09/2015,1193.74
http://statistics.data.gov.uk/id/local-authority-district/23UB,Cheltenham Borough Council,Recreation Centre Repairs & Maintenance,10016642,Direct debit,SEVERN TRENT WATER,R2401-REC111,Water Services - Metered,24/09/2015,2769.70
http://statistics.data.gov.uk/id/local-authority-district/23UB,Cheltenham Borough Council,Car Parks - Off Street Operations,10016588,Direct debit,WORLDPAY,R4428-CPK001,Services - credit card charges,21/09/2015,2099.07
